bitfinex/quotes_BTCUSD_20251016
["timestamp","ask_amount","ask_price","bid_price","bid_amount"]
[1760647746569,0.22945112,108200.0,108180.0,0.22185417]
[1760647746788,0.18485996,108190.0,108180.0,0.22185417]
[1760647747913,0.18485996,108190.0,108170.0,0.19413884]
[1760647748139,0.21392355,108190.0,108180.0,0.18487705]
[1760647748351,0.21392355,108190.0,108170.0,0.18488953]
[1760647748789,0.21392355,108190.0,108180.0,0.18487705]
[1760647749004,0.18485996,108190.0,108180.0,0.18487705]
[1760647749223,0.18485996,108190.0,108180.0,0.18491705]
[1760647749503,0.31168858,108190.0,108180.0,4e-05]
[1760647749725,0.3449432,108190.0,108180.0,4e-05]
[1760647749950,5.19957987,108190.0,108180.0,4e-05]
[1760647750162,0.18490779,108170.0,108150.0,0.21261149]
[1760647750375,0.18490779,108170.0,108160.0,0.18491124]
[1760647750589,0.18489414,108170.0,108150.0,0.21261149]
[1760647750788,0.18489414,108170.0,108160.0,0.18491124]
[1760647750789,0.20471474,108170.0,108160.0,0.18491124]
[1760647751434,0.20471474,108170.0,108150.0,0.19421476]
[1760647751650,0.20471474,108170.0,108160.0,0.18491124]
[1760647752092,0.20471474,108170.0,108150.0,0.19421476]
[1760647752310,0.18491124,108160.0,108150.0,0.18496835]
[1760647752783,0.18491124,108160.0,108150.0,4.001e-05]
[1760647753034,0.26583178,108160.0,108150.0,4.001e-05]
[1760647753770,5.1287344,108160.0,108150.0,4.001e-05]
[1760647753992,5.15359282,108160.0,108150.0,4.001e-05]
[1760647754427,5.2432749,108160.0,108150.0,4.001e-05]
[1760647754859,5.173838,108160.0,108150.0,4.001e-05]
[1760647755521,5.1203382,108160.0,108150.0,4.001e-05]
[1760647755734,5.15357156,108160.0,108150.0,4.001e-05]
[1760647756595,5.1203382,108160.0,108150.0,4.001e-05]
[1760647757064,4.9049257,108160.0,108150.0,4.001e-05]
[1760647757272,5.0982119,108160.0,108150.0,4.001e-05]
[1760647757722,5.06498311,108160.0,108150.0,4.001e-05]
[1760647757949,5.18066944,108160.0,108150.0,4.001e-05]
[1760647758171,5.0982119,108160.0,108150.0,4.001e-05]
[1760647758387,5.07329031,108160.0,108150.0,4.001e-05]
[1760647759034,5.09820464,108160.0,108150.0,4.001e-05]
[1760647759253,5.07329031,108160.0,108150.0,4.001e-05]
[1760647759744,5.10705737,108160.0,108150.0,4.001e-05]
[1760647759969,5.19673945,108160.0,108150.0,4.001e-05]
[1760647760642,5.14696337,108160.0,108150.0,4.001e-05]
[1760647761405,5.19775128,108160.0,108150.0,4.001e-05]
[1760647762863,5.14796337,108160.0,108150.0,4.001e-05]
[1760647763278,5.19773652,108160.0,108150.0,4.001e-05]
[1760647767129,0.18497965,108120.0,108110.0,0.01843673]
[1760647767358,0.18507228,108120.0,108110.0,0.01843673]
[1760647767780,0.18507228,108120.0,108110.0,4e-05]
[1760647768002,0.22255983,108120.0,108110.0,0.18503676]
[1760647768675,0.22255983,108120.0,108110.0,0.22296689]
[1760647768890,0.22255983,108120.0,108110.0,0.18503676]
[1760647769113,0.22255983,108120.0,108110.0,4e-05]
[1760647771416,0.25874211,108120.0,108110.0,4e-05]
[1760647779938,0.2835937,108120.0,108110.0,4e-05]
[1760647780135,0.33575209,108120.0,108110.0,4e-05]
[1760647781248,0.35562886,108120.0,108110.0,4e-05]
[1760647781989,0.30347047,108120.0,108110.0,4e-05]
[1760647782207,0.33660592,108120.0,108110.0,4e-05]
[1760647783502,5.14729006,108120.0,108110.0,4e-05]
[1760647783885,5.18054675,108120.0,108110.0,4e-05]
[1760647785351,5.14729006,108120.0,108110.0,4e-05]
[1760647788395,5.16454845,108120.0,108110.0,4e-05]
[1760647788598,5.14729006,108120.0,108110.0,4e-05]
[1760647789377,5.16455591,108120.0,108110.0,4e-05]
[1760647789535,5.25423799,108120.0,108110.0,4e-05]
[1760647790387,5.20453481,108120.0,108110.0,4e-05]
[1760647791414,5.27093988,108120.0,108110.0,4e-05]
[1760647791641,5.04016415,108100.0,108090.0,0.0001]
[1760647791863,5.09334968,108100.0,108090.0,0.0001]
[1760647792073,5.2281601,108100.0,108090.0,0.0001]
[1760647792730,5.11000407,108100.0,108090.0,0.0001]
[1760647793185,5.14330077,108100.0,108090.0,0.0001]
[1760647793865,5.11000407,108100.0,108090.0,0.0001]
[1760647794531,0.29103607,108100.0,108090.0,0.0001]
[1760647794731,0.32432494,108100.0,108090.0,0.0001]
[1760647795162,0.3486103,108100.0,108090.0,0.0001]
[1760647795872,0.29103607,108100.0,108090.0,0.0001]
[1760647796082,0.32432039,108100.0,108090.0,0.0001]
[1760647797359,5.11000407,108100.0,108090.0,0.0001]
[1760647797564,5.1436882,108100.0,108090.0,0.0001]
[1760647798557,0.18508236,108060.0,108050.0,0.2127466]
[1760647798710,0.01987677,108060.0,108050.0,0.2127466]
[1760647799124,0.0576383,108060.0,108050.0,0.19434987]
[1760647799335,0.23916396,108070.0,108040.0,0.19469652]
[1760647799514,0.18508236,108060.0,108040.0,0.19469652]
[1760647799715,0.18509949,108050.0,108040.0,0.00090206]
[1760647799923,0.22992942,108050.0,108040.0,0.00090206]
[1760647800336,0.308453,108050.0,108040.0,0.00090206]
[1760647800530,0.31677072,108050.0,108040.0,0.00090206]
[1760647800731,0.27442942,108050.0,108040.0,0.18601868]
[1760647800981,0.22992692,108050.0,108040.0,0.18601868]
[1760647801343,0.22992692,108050.0,108040.0,0.00090206]
[1760647802202,0.2661092,108050.0,108040.0,0.00090206]
[1760647802412,0.29938008,108050.0,108040.0,0.00090206]
[1760647802579,5.1468343,108050.0,108040.0,0.00090206]
[1760647803054,5.19674062,108050.0,108040.0,0.00090206]
[1760647803226,5.16346974,108050.0,108040.0,0.00090206]
[1760647803475,5.19665723,108050.0,108040.0,0.00090206]
[1760647803863,5.16346974,108050.0,108040.0,0.00090206]
[1760647804918,5.11003286,108050.0,108040.0,0.00090206]
[1760647805248,5.14319601,108050.0,108040.0,0.00090206]
[1760647806667,0.27432169,108050.0,108040.0,0.00090206]
[1760647806905,0.04472107,108050.0,108040.0,0.18601868]
[1760647807118,0.26296658,108060.0,108040.0,0.18601868]
[1760647807328,0.07788422,108060.0,108040.0,0.22313785]
[1760647807536,0.04472107,108060.0,108050.0,0.18509949]
[1760647807764,0.27676016,108070.0,108060.0,0.18508236]
[1760647807979,0.18508236,108060.0,108050.0,0.18509949]
[1760647808187,0.18509949,108050.0,108040.0,0.18601868]
[1760647808408,0.18509949,108050.0,108040.0,0.00090206]
[1760647808604,0.22410535,108050.0,108040.0,0.00090206]
[1760647809700,0.18509949,108050.0,108040.0,0.00090206]
[1760647810594,0.22128177,108050.0,108040.0,0.00090206]
[1760647810779,0.24612607,108050.0,108040.0,0.00090206]
[1760647812783,5.06509407,108050.0,108040.0,0.00090206]
[1760647813060,5.11813399,108050.0,108040.0,0.00090206]
[1760647813263,5.20781607,108050.0,108040.0,0.00090206]
[1760647813897,5.18297177,108050.0,108040.0,0.00090206]
[1760647814785,5.23287809,108050.0,108040.0,0.00090206]
[1760647815404,5.19971494,108050.0,108040.0,0.00090206]
[1760647815865,0.18511662,108040.0,108030.0,4e-05]
[1760647816077,5.11598286,108040.0,108030.0,0.0001905]
[1760647816291,5.15216514,108040.0,108030.0,0.0001905]
[1760647817479,5.04028403,108030.0,108020.0,1e-08]
[1760647817679,5.07726338,108030.0,108020.0,0.00015057]
[1760647817901,5.04031831,108010.0,108000.0,0.05599057]
[1760647818174,5.17471579,108010.0,108000.0,0.05614122]
[1760647818379,5.19181652,108010.0,108000.0,0.05614122]
[1760647818802,5.20009606,108010.0,108000.0,0.05614122]
[1760647819198,5.24977332,108010.0,108000.0,0.05614122]
[1760647819541,5.58977332,108010.0,108000.0,0.05614122]
[1760647819723,5.59077332,108010.0,108000.0,0.05614122]
[1760647820583,5.55765515,108010.0,108000.0,0.05614122]
[1760647820783,5.52147287,108010.0,108000.0,0.05614122]
[1760647821024,5.55665515,108010.0,108000.0,0.05614122]
[1760647821191,5.55765515,108010.0,108000.0,0.05614122]
[1760647822064,5.59074308,108010.0,108000.0,0.05614122]
[1760647822292,5.59073852,108010.0,108000.0,0.05614122]
[1760647823347,5.59073689,108010.0,108000.0,0.05614122]
[1760647824298,5.55765515,108010.0,108000.0,0.05614122]
[1760647825353,0.22136746,108000.0,107990.0,4e-05]
[1760647825603,5.2000854,108000.0,107990.0,4e-05]
[1760647825843,5.2166723,108000.0,107990.0,4e-05]
[1760647826267,5.14542695,108000.0,107990.0,4e-05]
[1760647826475,5.12884535,108000.0,107990.0,4e-05]
[1760647826687,0.18523016,107980.0,107960.0,0.20337951]
[1760647826888,0.18523663,107970.0,107960.0,0.20353027]
[1760647827094,0.52523663,107970.0,107960.0,0.20353027]
[1760647827297,0.58312302,107970.0,107960.0,0.18540021]
[1760647828324,0.24312302,107970.0,107960.0,0.22342561]
[1760647828549,0.22324625,107970.0,107960.0,0.22342561]
[1760647828915,0.22324625,107970.0,107960.0,0.22442561]
[1760647829114,0.03800962,107970.0,107960.0,0.18640021]
[1760647829498,0.23293685,107990.0,107980.0,0.18521948]
[1760647829704,0.03861642,107990.0,107980.0,0.18521948]
[1760647829911,0.0382735,108000.0,107990.0,0.18520233]
[1760647829912,0.20358235,108000.0,107990.0,0.18520233]
[1760647830119,0.26697708,108010.0,107990.0,0.18520233]
[1760647830321,0.33720433,108010.0,107990.0,0.18520233]
[1760647830559,0.04772945,108010.0,108000.0,0.18518518]
[1760647830709,0.22379199,108010.0,108000.0,0.18518518]
[1760647831110,0.22379199,108010.0,107990.0,0.18520233]
[1760647831309,0.22379199,108010.0,108000.0,0.18518518]
[1760647831875,0.22379199,108010.0,108000.0,0.18522518]
[1760647832463,0.27286683,108010.0,108000.0,0.18522518]
[1760647833050,0.27286683,108010.0,108000.0,4e-05]
[1760647833311,5.18988734,108010.0,108000.0,4e-05]
[1760647833518,5.1981618,108010.0,108000.0,4e-05]
[1760647833718,0.1367097,108010.0,107990.0,0.17371388]
[1760647833920,0.24367095,108010.0,108000.0,0.1758887]
[1760647834716,0.0707146,108010.0,108000.0,0.18518518]
[1760647834917,0.0707146,108010.0,108000.0,0.17886202]
[1760647834918,0.108962,108010.0,108000.0,0.17886202]
[1760647835123,0.14456949,108010.0,107990.0,0.16537306]
[1760647835329,0.14456949,108010.0,107980.0,0.18521357]
[1760647835330,0.18520668,107990.0,107980.0,0.18521357]
[1760647835504,0.18520668,107990.0,107980.0,0.00015076]
[1760647835720,0.18521948,107980.0,107960.0,0.19452734]
[1760647836003,0.00382135,107970.0,107960.0,0.18564889]
[1760647837184,0.00382135,107970.0,107960.0,0.16763995]
[1760647837429,0.00382135,107970.0,107960.0,0.12179602]
[1760647837587,0.00382135,107970.0,107960.0,0.70178397]
[1760647838436,0.00382135,107970.0,107960.0,0.70182397]
[1760647838844,0.00382135,107970.0,107960.0,0.19608084]
[1760647839012,0.00382135,107970.0,107960.0,0.18737422]
[1760647839222,0.00382135,107970.0,107960.0,0.18563445]
[1760647839426,0.00382135,107970.0,107960.0,0.18078013]
[1760647840204,0.00382135,107970.0,107960.0,0.68291712]
[1760647840400,0.00382135,107970.0,107960.0,0.18078013]
[1760647840817,0.18522153,107980.0,107970.0,0.18523663]
[1760647841015,0.18521948,107980.0,107970.0,0.18523663]
[1760647841247,0.18523663,107970.0,107960.0,0.00104]
[1760647841450,0.18521948,107980.0,107960.0,0.18629379]
[1760647841741,0.18521948,107980.0,107970.0,0.18523663]
[1760647841952,0.2193751,107990.0,107970.0,0.18523663]
[1760647842161,0.23658974,107990.0,107980.0,0.18494434]
[1760647842343,0.04213271,107990.0,107980.0,0.17643385]
[1760647842610,0.22733504,107990.0,107980.0,0.17643385]
[1760647843047,0.04213271,107990.0,107980.0,0.17643385]
[1760647843262,0.22733504,107990.0,107980.0,0.18662157]
[1760647843907,0.22733504,107990.0,107980.0,4e-05]
[1760647844119,0.22733504,107990.0,107980.0,0.18525948]
[1760647844527,0.22733504,107990.0,107980.0,4e-05]
[1760647844942,0.22733504,107990.0,107980.0,0.18525948]
[1760647845356,0.2604307,107990.0,107980.0,0.18525948]
[1760647845575,0.3127455,107990.0,107980.0,4e-05]
[1760647845779,0.28783567,107990.0,107980.0,4e-05]
[1760647846414,0.28783567,107990.0,107980.0,0.18525948]
[1760647846626,0.24737319,107990.0,107980.0,0.18525948]
[1760647847260,0.28046885,107990.0,107980.0,0.18525948]
[1760647847729,0.09526652,107990.0,107980.0,0.18525948]
[1760647847964,0.09526652,107990.0,107980.0,0.68739647]
[1760647847965,0.01997689,107990.0,107980.0,0.68739647]
[1760647848201,0.06321849,108010.0,108000.0,0.18518518]
[1760647848417,0.06321849,108010.0,108000.0,0.22222393]
[1760647848418,0.01996654,108010.0,108000.0,0.22222393]
[1760647848648,0.01996654,108010.0,108000.0,0.18518518]
[1760647849074,0.06308034,108020.0,108010.0,0.18516803]
[1760647849285,0.0831974,108020.0,108010.0,0.18516803]
[1760647850379,0.05823878,108020.0,108010.0,0.18516803]
[1760647850597,0.02011706,108020.0,108010.0,0.22220335]
[1760647850819,0.02011706,108020.0,108010.0,0.18516803]
[1760647852071,0.02011706,108020.0,108010.0,0.18520803]
[1760647852510,0.00015065,108020.0,108010.0,0.18520803]
[1760647860637,0.00015065,108020.0,108010.0,4e-05]
[1760647860859,0.00015065,108020.0,108010.0,0.18520803]
[1760647861055,0.18530154,108020.0,108010.0,0.18520803]
[1760647861279,0.00015065,108020.0,108010.0,0.18520803]
[1760647862140,0.18530154,108020.0,108010.0,0.18520803]
[1760647862366,0.00015065,108020.0,108010.0,0.18520803]
[1760647867071,0.00015065,108020.0,108010.0,0.22224735]
[1760647868128,0.00015065,108020.0,108010.0,0.18520803]
[1760647873960,0.18530154,108020.0,108010.0,0.18520803]
[1760647874145,0.18530154,108020.0,108010.0,4e-05]
[1760647874375,0.22148382,108020.0,108010.0,4e-05]
[1760647874593,5.04045182,108020.0,108010.0,4e-05]
[1760647874806,5.20287741,108020.0,108010.0,4e-05]
[1760647875485,0.38390941,108020.0,108010.0,4e-05]
[1760647875718,0.35895079,108020.0,108010.0,4e-05]
[1760647876592,0.02008516,108020.0,108010.0,0.18520803]
[1760647876783,0.00015065,108020.0,108010.0,0.18520803]
[1760647877053,0.00015065,108020.0,108010.0,0.20372483]
[1760647877280,0.00015065,108020.0,108010.0,1.05218356]
[1760647878851,0.00015065,108020.0,108010.0,1.05318356]
[1760647879274,0.00015065,108020.0,108010.0,0.27589815]
[1760647879762,0.00015065,108020.0,108010.0,0.18620803]
[1760647879964,0.18530154,108020.0,108010.0,0.18620803]
[1760647880821,0.20511947,108030.0,108020.0,0.18515089]
[1760647881028,0.25118394,108040.0,108020.0,0.18515089]
[1760647881272,0.18513375,108030.0,108020.0,0.18515089]
[1760647881716,0.18513375,108030.0,108010.0,0.18520803]
[1760647881942,0.18515089,108020.0,108010.0,0.18520803]
[1760647882188,0.20511944,108030.0,108020.0,0.18515089]
[1760647882390,0.18513375,108030.0,108020.0,0.18515089]
[1760647883925,0.18513375,108030.0,108010.0,0.18520803]
[1760647884133,0.18515089,108020.0,108010.0,0.18520803]
[1760647884304,0.18513375,108030.0,108010.0,0.18520803]
[1760647884305,0.20511944,108030.0,108010.0,0.18520803]
[1760647884505,0.18513375,108030.0,108010.0,0.18520803]
[1760647884962,0.18515089,108020.0,108010.0,4e-05]
[1760647886057,0.21010951,108020.0,108010.0,4e-05]
[1760647886258,0.18515089,108020.0,108010.0,4e-05]
[1760647887530,0.22133317,108020.0,108010.0,4e-05]
[1760647887938,0.24629179,108020.0,108010.0,4e-05]
[1760647888143,0.29935524,108020.0,108010.0,4e-05]
[1760647888346,0.27439662,108020.0,108010.0,4e-05]
[1760647888548,0.29935524,108020.0,108010.0,4e-05]
[1760647888968,0.24918412,108020.0,108010.0,4e-05]
[1760647889173,0.22133317,108020.0,108010.0,4e-05]
[1760647890812,0.24629179,108020.0,108010.0,4e-05]
[1760647892043,0.21010951,108020.0,108010.0,4e-05]
[1760647892222,0.18515089,108020.0,108010.0,0.18520803]
[1760647892678,0.25792901,108030.0,108010.0,0.18520803]
[1760647892679,0.23007806,108030.0,108010.0,0.18520803]
[1760647892880,0.18515089,108020.0,108010.0,0.18520803]
[1760647893531,0.18515089,108020.0,108010.0,4e-05]
[1760647893957,0.18515089,108020.0,108010.0,0.18520803]
[1760647894159,0.18515089,108020.0,108010.0,4e-05]
[1760647894573,0.18515089,108020.0,108010.0,0.18520803]
[1760647894778,0.18515089,108020.0,108010.0,0.18620803]
[1760647895882,0.18515089,108020.0,108010.0,0.18520803]
[1760647896064,0.18515089,108020.0,108010.0,4e-05]
[1760647896272,0.25486373,108020.0,108010.0,4e-05]
[1760647896477,0.22133317,108020.0,108010.0,4e-05]
[1760647896688,0.0478349,108030.0,108020.0,0.18515089]
[1760647896839,0.18513375,108030.0,108020.0,0.18515089]
[1760647897237,0.18515089,108020.0,108010.0,0.18520803]
[1760647897627,0.18515089,108020.0,108010.0,4e-05]
[1760647898193,0.18515089,108020.0,108010.0,0.18520803]
[1760647899023,0.18513375,108030.0,108010.0,0.18524803]
[1760647899246,0.18515089,108020.0,108010.0,0.18524803]
[1760647899469,0.18515089,108020.0,108010.0,0.18624803]
[1760647899658,0.18515089,108020.0,108010.0,0.18524803]
[1760647900284,0.18515089,108020.0,108010.0,8e-05]
[1760647903102,0.18515089,108020.0,108010.0,0.18524803]
[1760647904649,0.18515089,108020.0,108010.0,8e-05]
[1760647904868,0.18515089,108020.0,108010.0,0.18524803]
[1760647906028,0.25787093,108050.0,108030.0,0.18512241]
[1760647906244,0.18511662,108040.0,108030.0,0.18512241]
[1760647906711,0.18511662,108040.0,108020.0,0.19438307]
[1760647906950,0.22891628,108040.0,108020.0,0.19440152]
[1760647908068,0.18513375,108030.0,108020.0,0.19440152]
[1760647908544,0.24888939,108040.0,108020.0,0.19440152]
[1760647908756,0.22891628,108040.0,108020.0,0.19440152]
[1760647908972,0.22891628,108040.0,108030.0,0.01851337]
[1760647910069,0.27784404,108050.0,108030.0,0.20364712]
[1760647910293,0.03855783,108050.0,108040.0,0.18511662]
[1760647910731,0.18508247,108060.0,108040.0,0.18511662]
[1760647910945,0.18523298,108060.0,108050.0,0.20360943]
[1760647911180,0.22363934,108060.0,108040.0,0.19437245]
[1760647911612,0.22363934,108060.0,108040.0,0.19537245]
[1760647911851,0.22363934,108060.0,108040.0,0.19437245]
[1760647912351,0.22363934,108060.0,108050.0,0.001]
[1760647912542,0.22363934,108060.0,108040.0,0.19437245]
[1760647912690,0.22363934,108060.0,108040.0,0.19537245]
[1760647912911,0.18509949,108050.0,108040.0,0.19537245]
[1760647913116,0.18509949,108050.0,108040.0,0.18611662]
[1760647913734,0.18509949,108050.0,108040.0,0.18615662]
[1760647914367,0.18509949,108050.0,108040.0,4e-05]
[1760647914571,0.18509949,108050.0,108040.0,0.18615662]
[1760647914989,0.18509949,108050.0,108040.0,0.00104]
[1760647915868,0.05850264,108060.0,108040.0,0.18515662]
[1760647916115,0.22363934,108060.0,108040.0,0.20366828]
[1760647916317,0.22363934,108060.0,108040.0,0.18515662]
[1760647916522,0.22363934,108060.0,108050.0,0.01850994]
[1760647916742,0.22363934,108060.0,108040.0,0.18515662]
[1760647916935,0.18509949,108050.0,108040.0,0.18515662]
[1760647917294,0.18509949,108050.0,108040.0,4e-05]
[1760647917508,0.18509949,108050.0,108040.0,0.00104]
[1760647917876,0.18509949,108050.0,108040.0,4e-05]
[1760647918073,0.18509949,108050.0,108040.0,0.00104]
[1760647918278,0.18509949,108050.0,108040.0,4e-05]
[1760647918713,0.18509949,108050.0,108040.0,0.00104]
[1760647919080,0.22597337,108050.0,108040.0,0.00104]
[1760647919769,5.04494137,108050.0,108040.0,0.00104]
[1760647919892,5.06488088,108050.0,108040.0,0.00104]
[1760647920700,5.04896562,108050.0,108040.0,4e-05]
[1760647920900,5.024007,108050.0,108040.0,4e-05]
[1760647921538,5.04896562,108050.0,108040.0,4e-05]
[1760647922157,0.205039,108050.0,108040.0,4e-05]
[1760647922372,0.21005811,108050.0,108040.0,4e-05]
[1760647922815,0.27141979,108060.0,108040.0,0.18515662]
[1760647923021,0.18509949,108050.0,108040.0,4e-05]
[1760647923223,0.18509949,108050.0,108040.0,0.01855166]
[1760647923700,0.18509949,108050.0,108040.0,0.20366828]
[1760647923941,0.18509949,108050.0,108040.0,0.00104]
[1760647924370,0.27141979,108060.0,108040.0,0.20466828]
[1760647924579,0.18509949,108050.0,108040.0,0.01955166]
[1760647925228,0.18509949,108050.0,108040.0,0.20466828]
[1760647925488,0.24357885,108060.0,108040.0,0.18615662]
[1760647925705,0.22363934,108060.0,108040.0,0.18615662]
[1760647925928,0.18509949,108050.0,108040.0,0.18615662]
[1760647926651,0.18509949,108050.0,108040.0,0.18515662]
[1760647926853,0.24357885,108060.0,108040.0,0.22321132]
[1760647927056,0.18509949,108050.0,108040.0,0.22321132]
[1760647927495,0.24357885,108060.0,108050.0,0.18509949]
[1760647927669,0.22363934,108060.0,108050.0,0.18509949]
[1760647927876,0.03855698,108060.0,108050.0,0.18509949]
[1760647928443,0.22363934,108060.0,108050.0,0.18509949]
[1760647928846,0.03855698,108060.0,108050.0,0.18509949]
[1760647929828,0.22363934,108060.0,108050.0,0.18509949]
[1760647930036,0.03855698,108060.0,108050.0,0.18509949]
[1760647930287,0.03855698,108060.0,108050.0,0.18609949]
[1760647932266,0.22363934,108060.0,108050.0,0.18609949]
[1760647932608,0.03855698,108060.0,108050.0,0.18609949]
[1760647932822,0.03855698,108060.0,108050.0,0.2232251]
[1760647933025,0.22363934,108060.0,108050.0,0.2232251]
[1760647934728,0.22363934,108060.0,108050.0,0.18609949]
[1760647935148,0.22363934,108060.0,108050.0,0.001]
[1760647940276,0.22363934,108060.0,108050.0,0.18609949]
[1760647940479,0.03855698,108060.0,108050.0,0.18609949]
[1760647940835,0.22363934,108060.0,108050.0,0.18609949]
[1760647941350,0.03855698,108060.0,108050.0,0.22322495]
[1760647942036,0.03855698,108060.0,108050.0,0.2231219]
[1760647942571,0.03855698,108060.0,108050.0,0.18599644]
[1760647942801,0.22363934,108060.0,108050.0,0.00089695]
[1760647942981,0.22363934,108060.0,108050.0,0.18599644]
[1760647945110,0.03855698,108060.0,108050.0,0.18599644]
[1760647945599,0.03855698,108060.0,108050.0,0.27568656]
[1760647945755,0.00015062,108060.0,108050.0,0.77753636]
[1760647946160,0.00015062,108060.0,108050.0,0.27568656]
[1760647946788,0.00015062,108060.0,108050.0,0.27478961]
[1760647947191,0.00015062,108060.0,108050.0,0.77763941]
[1760647947931,0.00015062,108060.0,108050.0,0.81382169]
[1760647949499,0.25613551,108110.0,108060.0,0.19432097]
[1760647949719,0.05281661,108110.0,108090.0,0.18502304]
[1760647949926,0.05281661,108110.0,108100.0,0.20351525]
[1760647949927,5.021e-05,108110.0,108100.0,0.20351525]
[1760647950279,5.021e-05,108110.0,108100.0,0.18501387]
[1760647950434,5.021e-05,108110.0,108100.0,0.20351525]
[1760647950635,0.03713326,108110.0,108100.0,0.20351525]
[1760647950837,0.03813326,108110.0,108100.0,0.20351525]
[1760647951040,0.37813326,108110.0,108100.0,0.20351525]
[1760647951244,0.37813326,108110.0,108100.0,0.18501387]
[1760647951564,0.03813326,108110.0,108100.0,0.18501387]
[1760647952190,0.22213002,108110.0,108090.0,0.18502304]
[1760647952727,0.22213002,108110.0,108100.0,0.001]
[1760647953153,0.18501387,108100.0,108080.0,0.18504055]
[1760647953315,0.18501387,108100.0,108090.0,0.18503099]
[1760647953518,0.57137985,108110.0,108090.0,0.18503099]
[1760647955067,0.03713326,108110.0,108100.0,0.20351525]
[1760647955282,0.03713326,108110.0,108100.0,0.27470399]
[1760647956635,0.03713326,108110.0,108100.0,0.27570399]
[1760647956880,5.021e-05,108110.0,108100.0,0.32304475]
[1760647957086,5.021e-05,108110.0,108100.0,0.77755379]
[1760647957502,5.021e-05,108110.0,108100.0,0.81373607]
[1760647959103,5.021e-05,108110.0,108100.0,0.90729607]
[1760647967091,5.021e-05,108110.0,108100.0,0.31188627]
[1760647967299,5.021e-05,108110.0,108100.0,0.27570399]
[1760647971867,5.021e-05,108110.0,108100.0,0.27470399]
[1760647972078,5.021e-05,108110.0,108100.0,0.27570399]
[1760647974364,0.18504697,108110.0,108100.0,0.09069012]
[1760647974587,0.18504697,108110.0,108100.0,0.001]
[1760647974760,0.20488619,108110.0,108100.0,0.001]
[1760647975377,0.22982575,108110.0,108090.0,0.18503036]
[1760647975656,0.22982575,108110.0,108090.0,0.31265281]
[1760647975880,0.04482899,108110.0,108100.0,0.18501387]
[1760647976110,0.20488619,108110.0,108100.0,0.18501387]
[1760647976323,0.01988943,108110.0,108100.0,0.18501387]
[1760647977724,0.04482899,108110.0,108100.0,0.18501387]
[1760647977879,0.22982575,108110.0,108100.0,0.1944223]
[1760647978079,0.22982575,108110.0,108100.0,0.18501387]
[1760647979715,0.04482899,108110.0,108100.0,0.18501387]
[1760647981081,0.01988943,108110.0,108100.0,0.18501387]
[1760647982119,0.18497965,108120.0,108110.0,0.18499676]
[1760647982317,0.18548159,108120.0,108110.0,0.18499676]
[1760647982521,0.18548159,108120.0,108110.0,0.03792613]
[1760647982916,0.00050194,108120.0,108110.0,0.24142256]
[1760647983109,0.00050194,108120.0,108110.0,0.22292289]
[1760647983574,0.18548159,108120.0,108110.0,0.03792613]
[1760647983782,0.18548159,108120.0,108100.0,0.19426456]
[1760647983981,0.18548159,108120.0,108100.0,0.28395468]
[1760647984195,0.18548159,108120.0,108110.0,0.18499676]
[1760647984592,0.18548159,108120.0,108100.0,0.28395468]
[1760647986099,0.23215077,108130.0,108110.0,0.18499676]
[1760647986303,0.18497965,108120.0,108100.0,0.28395468]
[1760647987587,0.18501387,108100.0,108070.0,0.21269192]
[1760647987761,0.18501387,108100.0,108070.0,0.29364933]
[1760647987762,0.18504811,108080.0,108070.0,0.29364933]
[1760647987999,0.18504811,108080.0,108070.0,0.10858879]
[1760647988165,0.18504811,108080.0,108070.0,0.00050194]
[1760647988365,0.18504811,108080.0,108070.0,0.18556717]
[1760647988570,0.18504811,108080.0,108070.0,0.03849075]
[1760647988772,0.18504811,108080.0,108070.0,0.00050194]
[1760647989175,0.18503099,108090.0,108070.0,0.00050194]
[1760647989412,0.18504811,108080.0,108070.0,0.00050194]
[1760647989626,0.18504811,108080.0,108070.0,0.00150194]
[1760647990007,0.18504811,108080.0,108070.0,0.00050194]
[1760647993786,0.18004811,108080.0,108070.0,0.00050194]
[1760647993988,0.18004811,108080.0,108070.0,0.18556717]
[1760647994276,0.20495225,108090.0,108070.0,0.24113817]
[1760647994476,0.18503099,108090.0,108070.0,0.22263165]
[1760647994707,0.24201385,108100.0,108070.0,0.22263165]
[1760647994917,0.18503099,108090.0,108080.0,0.01850481]
[1760647995090,0.18503099,108090.0,108080.0,0.20355292]
[1760647995253,0.18503099,108090.0,108080.0,0.19532439]
[1760647995450,0.18503099,108090.0,108080.0,0.2138292]
[1760647995861,0.18503099,108090.0,108080.0,0.02878109]
[1760647996887,0.18504811,108080.0,108070.0,0.19482043]
[1760647997124,0.20495225,108090.0,108070.0,0.19482043]
[1760647997324,0.18503099,108090.0,108070.0,0.19482043]
[1760647999446,0.18504811,108080.0,108070.0,0.00050194]
[1760647999666,0.18504811,108080.0,108070.0,0.18556717]
[1760648000078,0.18504811,108080.0,108070.0,0.00050194]
[1760648000487,0.18504811,108080.0,108070.0,0.18556717]
[1760648000694,0.18503099,108090.0,108070.0,0.18556717]
[1760648000907,0.18504811,108080.0,108070.0,0.22355706]
[1760648001320,0.18254811,108080.0,108070.0,0.18556717]
[1760648002988,0.18503099,108090.0,108070.0,0.18556717]
[1760648003967,0.18503099,108090.0,108080.0,0.01850481]
[1760648006576,0.18504811,108080.0,108070.0,0.18556717]
[1760648006778,0.18503099,108090.0,108070.0,0.18556717]
[1760648006980,0.18503099,108090.0,108070.0,0.22355706]
[1760648007493,0.18504811,108080.0,108070.0,0.22355706]
[1760648007714,0.18504811,108080.0,108070.0,0.00050194]
[1760648010887,0.18504811,108080.0,108070.0,0.00054194]
[1760648015552,0.18504811,108080.0,108070.0,0.01904846]
[1760648015797,0.18504811,108080.0,108070.0,0.00054194]
[1760648016780,0.18504811,108080.0,108070.0,0.01904846]
[1760648017282,0.18504811,108080.0,108070.0,0.03946145]
[1760648017483,0.20498074,108080.0,108070.0,0.03946145]
[1760648017661,0.22293042,108090.0,108070.0,0.03946145]
[1760648017982,0.20659478,108090.0,108070.0,0.03946145]
[1760648018210,0.18504811,108080.0,108070.0,0.03946145]
[1760648020381,0.20659478,108090.0,108070.0,0.22452668]
[1760648020382,0.04782973,108090.0,108070.0,0.22452668]
[1760648020576,0.23286072,108090.0,108080.0,0.18504811]
[1760648020779,0.21286029,108090.0,108070.0,0.20602016]
[1760648021093,0.18504811,108080.0,108070.0,0.02095493]
[1760648021340,0.18504811,108080.0,108070.0,0.18560717]
[1760648022040,0.18504811,108080.0,108070.0,0.00054194]
[1760648022949,0.18504811,108080.0,108070.0,0.01904846]
[1760648023149,0.18504811,108080.0,108070.0,0.00054194]
[1760648023647,0.18504811,108080.0,108070.0,0.18560717]
[1760648023847,0.18504811,108080.0,108070.0,0.00054194]
[1760648033011,0.21287741,108080.0,108070.0,0.00054194]
[1760648035117,5.50784847,108080.0,108070.0,0.00054194]
[1760648035320,5.02785329,108080.0,108070.0,0.00054194]
[1760648037754,5.06094895,108080.0,108070.0,0.00054194]
[1760648038360,5.02785329,108080.0,108070.0,0.00054194]
[1760648038955,5.11753537,108080.0,108070.0,0.00054194]
[1760648039735,5.02785329,108080.0,108070.0,0.00054194]